Cogmind - Beta 13 @@@ ROGUE MODE // 2024.04.08 @ 20:07:18 Player: Ferns Result: Destroyed by P-70 Sage with High-powered Shock Rifle Performance ------------- Evolutions (5) 2500 Regions Visited (10) 2000 Robots Destroyed (122) 610 Value Destroyed (3826) 3826 Prototype IDs (32) 640 Alien Tech Used (0) 0 Bonus (-783) -783 TOTAL SCORE: 8793 Bonus ------- High Alert Combat Kills 74 Follower Combat Kills 98 Aligned with FarCom 300 Friendly Fire -1255 Cogmind --------- Core Integrity 0/1000 Matter 290/300 Energy 82/125 System Corruption 9% Temperature Cool (0) Movement Rolling (80) Location -5/Factory Parts ------- > --- POWER (2) -------- Light Ion Engine > --- PROPULSION (6) --- Wheel > --- UTILITY (7) ------ Improved Signal Interpreter Improved Melee Analysis Suite > --- WEAPON (2) ------- (None) > --- INVENTORY (5) ---- Improved Reaction Control System Layered Light Armor Plating Improved Focal Shield System Shield Peak State ------------ > --- POWER ------------ Fission Core Fusion Compressor > --- PROPULSION ------- Improved Flight Unit Improved VTOL Module Xenon Bombardment Thruster Xenon Bombardment Thruster Xenon Bombardment Thruster Improved Cesium-ion Thruster > --- UTILITY ---------- Improved Heat Sink Medium Storage Unit Improved Signal Interpreter Improved Melee Analysis Suite Improved Actuator Array Hacking Suite Hacking Suite > --- WEAPON ----------- Power Maul Carbide Saw > --- INVENTORY -------- Surge Thruster Surge Thruster Energy Filter Microactuators Improved Reaction Control System Layered Light Armor Plating Improved Focal Shield System Shield Advanced EMP Blaster Advanced EMP Blaster [Rating: 69] Favorites ----------- Power Micro Nuclear Core Engine Improved Ion Engine Power Core Micro Nuclear Core Reactor Cold Fusion Reactor Propulsion Improved VTOL Module Treads Light Treads Wheel Compact Wheel Flight Unit Improved VTOL Module Utility Hacking Suite Device Improved Heat Sink Storage Medium Storage Unit Processor Improved Signal Interpreter Hackware Hacking Suite Protection Medium Armor Plating Weapon Power Maul Energy Gun Lightning Gun Ballistic Gun Assault Rifle Ballistic Cannon Improved Light Cannon Launcher Advanced EMP Blaster Impact Weapon Power Maul Slashing Weapon Carbide Saw Build | -11 -10 -9 -9 -9 -8 -8 -8 -7 -6 -5 ------- Run | Yrd Mat Mat Min Exi Min Mat Sto Fac Fac Fac Slots Evolved 10 | . . 2 . . . 2 . 2 2 2 Power 1 | . . . . . . . . . 1 . Propulsion 4 | . . 1 . . . 1 . 1 . 1 Utility 5 | . . 1 . . . 1 . 1 1 1 Weapon . | . . . . . . . . . . . Parts Attached 136 | 7 2 8 15 2 . 8 19 39 7 29 Power 21 | 1 1 1 1 . . 1 1 6 3 6 Engine 7 | 1 1 1 1 . . 1 . 1 . 1 Core 13 | . . . . . . . 1 5 2 5 Reactor 1 | . . . . . . . . . 1 . Propulsion 38 | 2 . 4 3 . . 2 2 14 2 9 Treads 3 | . . . 2 . . 1 . . . . Leg . | . . . . . . . . . . . Wheel 8 | 2 . 4 1 . . . . . . 1 Hover . | . . . . . . . . . . . Flight 27 | . . . . . . 1 2 14 2 8 Utility 40 | 2 . 2 5 2 . 3 5 11 1 9 Device 19 | 1 . . 1 . . 1 1 8 . 7 Storage 7 | 1 . 1 1 2 . . . 1 . 1 Processor 4 | . . . 1 . . . 1 . 1 1 Hackware 2 | . . . . . . . . 2 . . Protection 8 | . . 1 2 . . 2 3 . . . Artifact . | . . . . . . . . . . . Weapon 37 | 2 1 1 6 . . 2 11 8 1 5 Energy Gun 14 | . . 1 2 . . 2 5 3 1 . Energy Cannon . | . . . . . . . . . . . Ballistic Gun 6 | 2 . . 3 . . . . . . 1 Ballistic Cannon 1 | . . . 1 . . . . . . . Launcher 12 | . 1 . . . . . 5 4 . 2 Special Weapon . | . . . . . . . . . . . Impact Weapon 3 | . . . . . . . 1 1 . 1 Slashing Weapon 1 | . . . . . . . . . . 1 Piercing Weapon . | . . . . . . . . . . . Special Melee Weapon . | . . . . . . . . . . . Unidentified Prototypes 9 | . . 2 . . . 1 2 3 1 . Corrupted Parts 2 | . . . . . . . 1 1 . . System Corruption 15 | . . . . . . . 10 5 . . Parts Lost 52 | . . 4 8 . 2 1 5 8 . 24 Power 8 | . . . 1 . . . . 3 . 4 Propulsion 19 | . . 3 2 . . . 2 2 . 10 Utility 12 | . . . 2 . 1 . 2 2 . 5 Weapon 13 | . . 1 3 . 1 1 1 1 . 5 Highest Loss Streak 12 | . . 1 7 . 2 1 2 3 . 12 To Critical Strikes . | . . . . . . . . . . . Average Slot Usage (%) 92 | . 100 90 88 100 100 86 96 97 85 79 Engine 4 | . 14 11 10 11 11 9 2 . 1 . Core 4 | . . . . . . . 6 6 4 6 Treads 7 | . . . 13 22 22 18 16 . . . Wheel 7 | . 28 28 12 11 11 9 5 . . . Flight 17 | . . . . . . . 11 36 33 27 Device 6 | . 14 11 8 . . 7 3 8 6 8 Storage 8 | . 14 11 10 11 11 9 9 7 6 4 Processor 7 | . . . 2 11 11 9 9 7 12 11 Hackware 5 | . . . . . . . . 12 13 9 Protection 5 | . . 7 10 11 11 7 12 . . . Energy Gun 6 | . . 7 9 11 11 13 12 2 . . Ballistic Gun 2 | . 19 11 3 . . . . . . . Ballistic Cannon 2 | . . . 7 11 11 2 . . . . Launcher 2 | . 8 3 . . . . 4 5 . . Impact Weapon 2 | . . . . . . . . 6 6 4 Naked Turns . | . . . . . . . . . . . Heaviest Build 69 | 12 16 27 33 61 61 63 69 31 26 38 Greatest Support 48 | 32 32 48 40 16 16 16 42 31 25 34 Greatest Overweight (x) 6 | . . 1 4 3 3 3 4 1 1 6 Average Overweight (x) . | . . . 1 1 3 3 2 . . . Largest Inventory Capacity 25 | 8 8 10 10 20 20 20 20 20 10 25 Average Capacity 12 | 7 8 9 9 15 20 20 20 10 10 9 Most Carried 20 | 3 7 10 10 13 13 20 20 18 10 10 Average Carried 11 | 2 6 8 9 11 13 16 19 9 9 8 Final Capacity 20 | 8 8 10 10 20 20 20 20 10 10 5 Final Carried 19 | 3 7 10 10 13 13 19 19 10 10 4 Class Distribution -------------------- 36% | Scavenger-Mutant 26% | Mutant 11% | Hacker-Mutant 11% | Scavenger-Sprinter 4% | Scavenger-Scout Dominant Class ---------------- Mutant | -10/Materials Scavenger-Mutant | -9/Materials Scavenger-Mutant | -9/Mines Scavenger-Mutant | -9/Exiles Scavenger-Mutant | -8/Mines Mutant | -8/Materials Mutant | -8/Storage Hacker-Mutant | -7/Factory Scavenger-Sprinter | -6/Factory Scavenger-Sprinter | -5/Factory Resources | -11 -10 -9 -9 -9 -8 -8 -8 -7 -6 -5 ----------- Run | Yrd Mat Mat Min Exi Min Mat Sto Fac Fac Fac Matter Collected 2470 | 113 19 499 166 . 163 87 279 518 34 592 Remotely . | . . . . . . . . . . . Salvage Created 4337 | 76 63 573 213 . 124 169 1176 749 119 1075 Parts 223 | 4 13 38 15 . 15 6 50 38 2 42 Haulers Intercepted 4 | . . 2 . . . . . 1 . 1 Recyclers Shooed 7 | . . 1 1 . 1 . 3 . . 1 Parts Field Recycled . | . . . . . . . . . . . Retrieved Matter . | . . . . . . . . . . . Parts Self-Destructed . | . . . . . . . . . . . Prevented . | . . . . . . . . . . . Kills | -11 -10 -9 -9 -9 -8 -8 -8 -7 -6 -5 ------- Run | Yrd Mat Mat Min Exi Min Mat Sto Fac Fac Fac Combat Hostiles Destroyed 83 | . 2 13 6 . 8 3 22 13 2 14 Melee 14 | . . . . . . . 2 5 1 6 Guns 23 | . . 8 2 . 3 3 5 . . 2 Cannons 7 | . . . 2 . 5 . . . . . AOE 30 | . 2 5 2 . . . 14 4 . 3 Classes Destroyed 19 | 2 4 4 . . . 1 4 3 . 1 Worker 6 | . 1 1 . . . . 2 1 . 1 Builder 6 | . 1 1 . . . . . 2 . 2 Tunneler 2 | 1 . . . . 1 . . . . . Hauler 4 | . . 2 . . . . . 1 . 1 Recycler 4 | 1 . . 1 . . . . . . 2 Mechanic 1 | . . . . . . . 1 . . . Operator 4 | . . . . . . 1 1 2 . . Drone 8 | . . . . . . . 8 . . . Watcher 12 | . 2 1 . . . . 1 3 1 4 Swarmer 26 | . . 3 4 . 7 . 3 4 . 5 Cutter 1 | . . . . . . . . 1 . . Grunt 35 | . 2 7 . . 1 2 13 3 2 5 Brawler 2 | . . 1 . . . . 1 . . . Duelist 2 | . . . . . . . 1 . . 1 Sentry 9 | . . 2 2 . . 1 2 2 . . Demolisher 2 | . . . . . . . 2 . . . Hunter 1 | . . . . . . . . . . 1 Programmer 4 | . . . . . . . . 2 . 2 Heavy 1 | . . . . . . . . 1 . . Best Kill Streak 8 | 1 6 5 4 . 4 2 8 4 2 8 Combat Bots Only 7 | . 2 5 4 . 4 1 7 4 2 4 Max Kills in Single Turn 5 | 1 2 2 2 . 1 1 5 2 1 1 Gunslinging 1 | . . 1 . . . . . . . . Exploded 3 | . 1 2 2 . . . 3 2 . 1 Melee 1 | . . . . . . . 1 1 1 1 Uniques/NPCs Destroyed . | . . . . . . . . . . . Combat | -11 -10 -9 -9 -9 -8 -8 -8 -7 -6 -5 -------- Run | Yrd Mat Mat Min Exi Min Mat Sto Fac Fac Fac Hostile Shots Fired 598 | . 4 53 73 . 64 19 116 73 2 194 Missed 188 | . 1 18 16 . 18 8 38 38 2 49 Damage Taken 6183 | . 46 426 754 . 458 110 1074 739 . 2576 Core 1669 | . 5 40 245 . 50 10 139 178 . 1002 Absorbed by Shields 98 | . . . 13 . . 45 40 . . . Regen/Repaired (Parts) 91 | . . . . . . . . 44 . 47 Core Remaining (%) 76 | 100 98 . . . 16 . 72 74 100 . Volleys Fired 207 | 14 11 35 22 . 21 15 45 15 . 29 Largest 2 | 2 2 2 2 . 2 2 2 2 . 1 Hottest 110 | 40 40 65 89 . 95 110 110 110 . 36 Shots Fired 300 | 28 14 63 29 . 42 25 53 17 . 29 Gun 206 | 28 7 56 21 . 21 17 36 6 . 14 Cannon 37 | . . . 8 . 21 8 . . . . Launcher 57 | . 7 7 . . . . 17 11 . 15 Special . | . . . . . . . . . . . Kinetic 125 | 28 7 28 19 . 21 8 . . . 14 Thermal 24 | . . . 3 . 21 . . . . . Explosive 14 | . 7 7 . . . . . . . . Electromagnetic 137 | . . 28 7 . . 17 53 17 . 15 Robot Hit Streak 11 | 3 5 9 5 . 7 4 11 4 . 4 Robot Miss Streak 8 | 3 3 8 2 . 3 6 3 1 . 3 Penetration Max . | . . . . . . . . . . . Secondary Targets 1 | . . 1 . . . . . . . . Max Gunslinging Chain 1 | . . 1 . . . . . . . . Shots Hit Robots 219 | 15 7 38 21 . 24 12 34 29 4 35 Core Hits 173 | 4 10 30 10 . 11 7 51 20 1 29 Critical Kills 6 | . . . . . . . . 1 1 4 Critical Parts Destroyed 14 | . . . . . . . . 6 2 6 Critical Strikes 23 | . . . 1 . 1 . . 7 3 11 Blast 2 | . . . 1 . 1 . . . . . Smash 20 | . . . . . . . . 7 3 10 Sever 1 | . . . . . . . . . . 1 Melee Attacks 75 | . . . . . . . 6 28 7 34 Impact 68 | . . . . . . . 6 28 7 27 Slashing 7 | . . . . . . . . . . 7 Piercing . | . . . . . . . . . . . Sneak Attacks 8 | . . . . . . . . 3 1 4 Combat Hostiles 2 | . . . . . . . . 1 1 . Follow-up Attacks 1 | . . . . . . . . . . 1 Damage Inflicted 10089 | 168 513 1069 348 . 416 250 2895 2066 276 2088 Guns 2017 | 168 52 546 164 . 173 166 563 68 . 117 Cannons 454 | . . . 127 . 243 84 . . . . Explosions 4453 | . 437 523 57 . . . 2211 757 . 468 Melee 3137 | . . . . . . . 121 1241 276 1499 Ramming 28 | . 24 . . . . . . . . 4 Kinetic 1077 | 168 52 222 191 . 243 84 . . . 117 Thermal 1147 | . . 85 69 . 173 . 558 171 . 91 Explosive 875 | . 437 438 . . . . . . . . Electromagnetic 3825 | . . 324 88 . . 166 2216 654 . 377 Impact 3117 | . . . . . . . 121 1241 276 1479 Slashing 20 | . . . . . . . . . . 20 Piercing . | . . . . . . . . . . . Highest Corruption 11 | . 2 . . . . . 11 8 . 9 Average Corruption 4 | . 2 . . . . . 10 5 . 2 Corruption Purged 5 | . . . . . . . . 5 . . Corruption Blocked . | . . . . . . . . . . . Effects 54 | . . . . . . . 4 39 . 11 Message Errors 13 | . . . . . . . 1 11 . 1 Matter Fused 19 | . . . . . . . 1 15 . 3 Heat Flow Errors 10 | . . . . . . . 1 6 . 3 Energy Discharges 3 | . . . . . . . . 2 . 1 Data Loss (minor) 5 | . . . . . . . 1 3 . 1 Data Loss (major) 3 | . . . . . . . . 1 . 2 Misfires 1 | . . . . . . . . 1 . . Overload Shots . | . . . . . . . . . . . Overflow Damage 1557 | . . 14 . . 4 . 87 662 186 604 Projectiles 4 | . . . . . 4 . . . . . Explosions 102 | . . 14 . . . . 87 1 . . Melee 1451 | . . . . . . . . 661 186 604 Knockbacks 14 | . . . . . 1 1 . 3 2 7 Impact 12 | . . . . . . . . 3 2 7 Kinetic 2 | . . . . . 1 1 . . . . Secondary . | . . . . . . . . . . . Self-Inflicted Damage 221 | . 13 74 . . . . 60 72 . 2 Shots 12 | . 1 3 . . . . 4 4 . . Rammed 7 | . 5 . . . . . . . . 2 Targets Rammed 7 | . 5 . . . . . . . . 2 Kicked . | . . . . . . . . . . . Crushed . | . . . . . . . . . . . Highest Temperature 448 | . 1 78 61 . 448 232 274 300 . 285 Average Temperature 106 | . 1 28 23 . 221 98 77 123 . 138 Received Heat Transfer 1155 | . 18 117 249 . 117 66 429 72 . 87 Effects 10 | . . . . . 3 . . 7 . . Shutdowns 1 | . . . . . 1 . . . . . Interference 7 | . . . . . . . . 7 . . Matter Decay 1 | . . . . . 1 . . . . . Damage (minor) 1 | . . . . . 1 . . . . . Siege Activations . | . . . . . . . . . . . Robots Corrupted 3 | . . . . . . . 1 1 . 1 Combat Hostiles 3 | . . . . . . . 1 1 . 1 Parts Fried 50 | . . 2 . . . . 10 20 2 16 Impact Corruptions 49 | . . . . . . . . 24 6 19 Robots Melted . | . . . . . . . . . . . Combat Hostiles . | . . . . . . . . . . . Parts Melted 3 | . . . . . 1 . . 1 . 1 Heat Transferred 1912 | . . 200 87 . 444 . 781 250 . 150 Parts Sabotaged . | . . . . . . . . . . . Parts Stolen . | . . . . . . . . . . . Parts Stripped . | . . . . . . . . . . . Power Chain Reactions 11 | . . 2 1 . . . 4 2 . 2 Alert | -11 -10 -9 -9 -9 -8 -8 -8 -7 -6 -5 ------- Run | Yrd Mat Mat Min Exi Min Mat Sto Fac Fac Fac Peak Influence 466 | 10 125 463 192 . 247 193 466 327 86 288 Initial 114 | . 6 52 109 . . 88 81 114 14 42 Average 162 | 4 75 224 92 . 146 153 343 136 56 116 Maximum Alert Level 2 | . . 2 . . 1 . 2 1 . 1 Low Security (%) 69 | 100 100 31 100 . 68 100 7 83 100 81 Level 1 21 | . . 60 . . 31 . 41 16 . 18 Level 2 8 | . . 7 . . . . 51 . . . Level 3 . | . . . . . . . . . . . Level 4 . | . . . . . . . . . . . Level 5 . | . . . . . . . . . . . High Security . | . . . . . . . . . . . Max Security . | . . . . . . . . . . . Squads Dispatched 30 | . 2 3 . . . 1 6 13 1 4 Investigation 10 | . 1 2 . . . . . 5 . 2 Extermination 5 | . . . . . . . . 4 . 1 Reinforcement 11 | . 1 1 . . . 1 3 4 . 1 Assault 3 | . . . . . . . 3 . . . Garrison 1 | . . . . . . . . . 1 . Intercept . | . . . . . . . . . . . Searches Triggered . | . . . . . . . . . . . Construction Impeded 2 | . . . . . . . 1 . . 1 Haulers Reinforced 1 | . . . . . . . . 1 . . Active Scanning Responses . | . . . . . . . . . . . Cargo Convoy Interrupts . | . . . . . . . . . . . Stealth | -11 -10 -9 -9 -9 -8 -8 -8 -7 -6 -5 --------- Run | Yrd Mat Mat Min Exi Min Mat Sto Fac Fac Fac Distress Signals 5 | . . 4 . . . . . . . 1 Communications Jammed . | . . . . . . . . . . . Distress Signals . | . . . . . . . . . . . Times Spotted 140 | . 8 21 6 . 15 4 35 26 2 23 Peak Tracking Total 13 | . 2 6 4 . 4 2 13 6 1 5 Tactical Retreats 13 | . . 1 . . 2 . 1 6 . 3 Traps | -11 -10 -9 -9 -9 -8 -8 -8 -7 -6 -5 ------- Run | Yrd Mat Mat Min Exi Min Mat Sto Fac Fac Fac Traps Triggered 10 | . 1 1 . . . . . 6 . 2 Indirectly 2 | . . . . . . . . 1 . 1 Trap Hack Attempts . | . . . . . . . . . . . Triggered . | . . . . . . . . . . . Disarmed . | . . . . . . . . . . . Reprogrammed . | . . . . . . . . . . . Reused . | . . . . . . . . . . . Traps Extracted . | . . . . . . . . . . . Installed . | . . . . . . . . . . . Triggered . | . . . . . . . . . . . Machines | -11 -10 -9 -9 -9 -8 -8 -8 -7 -6 -5 ---------- Run | Yrd Mat Mat Min Exi Min Mat Sto Fac Fac Fac Machines Disabled 19 | . 1 2 . . 1 . 7 7 . 1 Max in Single Turn 4 | . 1 1 . . 1 . 3 4 . 1 Garrison Access 2 | . . . . . . . 1 . 1 . Machines Repaired . | . . . . . . . . . . . Machines Dismantled . | . . . . . . . . . . . Machines Sabotaged . | . . . . . . . . . . . Overloaded Fab Kills . | . . . . . . . . . . . Hacking | -11 -10 -9 -9 -9 -8 -8 -8 -7 -6 -5 --------- Run | Yrd Mat Mat Min Exi Min Mat Sto Fac Fac Fac Machines Accessed 20 | . . . . 1 . . 3 10 3 3 Terminals 8 | . . . . . . . 3 3 1 1 Fabricators 2 | . . . . . . . . 1 . 1 Repair Stations 3 | . . . . . . . . 2 . 1 Recycling Units 2 | . . . . . . . . 2 . . Scanalyzers 2 | . . . . . . . . 1 1 . Garrison Access 2 | . . . . . . . . 1 1 . Total Hacks 42 | . . . . 1 . . 4 24 5 8 Successful 27 | . . . . 1 . . 2 15 3 6 Failed 15 | . . . . . . . 2 9 2 2 Catastrophic 3 | . . . . . . . . 2 . 1 Database Lockouts . | . . . . . . . . . . . Manual 9 | . . . . 1 . . 1 5 2 . Terminals 13 | . . . . . . . 4 5 2 2 Fabricators 4 | . . . . . . . . 2 . 2 Repair Stations 9 | . . . . . . . . 5 . 4 Recycling Units 4 | . . . . . . . . 4 . . Scanalyzers 9 | . . . . . . . . 7 2 . Garrison Access 2 | . . . . . . . . 1 1 . Terminal Hacks 6 | . . . . 1 . . 2 3 . . Open Door 2 | . . . . . . . 2 . . . Level Access Points 1 | . . . . . . . . 1 . . Unreport Threat 2 | . . . . . . . . 2 . . Derelict Proto ID Bank 1 | . . . . 1 . . . . . . Fabricator Hacks 4 | . . . . . . . . 2 . 2 Load Schematic 2 | . . . . . . . . 1 . 1 Build 2 | . . . . . . . . 1 . 1 Repair Station Hacks 7 | . . . . . . . . 3 . 4 Scan Component 4 | . . . . . . . . 2 . 2 Repair 3 | . . . . . . . . 1 . 2 Recycling Unit Hacks 1 | . . . . . . . . 1 . . Retrieve Components 1 | . . . . . . . . 1 . . Scanalyzer 8 | . . . . . . . . 6 2 . Insert Component 3 | . . . . . . . . 2 1 . Analyze 5 | . . . . . . . . 4 1 . Garrison Access Hacks 1 | . . . . . . . . . 1 . Seal Access 1 | . . . . . . . . . 1 . Unauthorized Hacks . | . . . . . . . . . . . Terminals . | . . . . . . . . . . . Fabricators . | . . . . . . . . . . . Repair Stations . | . . . . . . . . . . . Recycling Units . | . . . . . . . . . . . Scanalyzers . | . . . . . . . . . . . Garrison Access . | . . . . . . . . . . . Data Cores Recovered 2 | . . . . . . . . 2 . . Used 2 | . . . . . . . . 2 . . Hacking Detections 16 | . . . . . . . 3 8 2 3 Full Trace Events 7 | . . . . . . . . 5 . 2 Feedback Events 2 | . . . . . . . . 1 . 1 Corruption 2 | . . . . . . . . 1 . 1 Feedback Blocked . | . . . . . . . . . . . Robot Schematics Acquired . | . . . . . . . . . . . Robots Built . | . . . . . . . . . . . Authchips . | . . . . . . . . . . . Time . | . . . . . . . . . . . Total Robot Build Rating . | . . . . . . . . . . . Part Schematics Acquired 3 | . . . . . . . . 2 1 . Parts Built 3 | . . . . . . . . 1 . 2 Authchips . | . . . . . . . . . . . Time 200 | . . . . . . . . 116 . 84 Total Part Build Rating 11 | . . . . . . . . 3 . 8 Parts Repaired 3 | . . . . . . . . 1 . 2 Time 148 | . . . . . . . . 60 . 88 Parts Recycled . | . . . . . . . . . . . Recycled Matter . | . . . . . . . . . . . Retrieved Matter . | . . . . . . . . . . . Retrieved Components 8 | . . . . . . . . 8 . . Parts Scanalyzed 3 | . . . . . . . . 2 1 . Part Schematics Acquired 3 | . . . . . . . . 2 1 . Parts Damaged . | . . . . . . . . . . . Bothacking | -11 -10 -9 -9 -9 -8 -8 -8 -7 -6 -5 ------------ Run | Yrd Mat Mat Min Exi Min Mat Sto Fac Fac Fac Used RIF Installer . | . . . . . . . . . . . Robots Hacked . | . . . . . . . . . . . Non-combat . | . . . . . . . . . . . Combat . | . . . . . . . . . . . Robot Hacks Applied . | . . . . . . . . . . . Relay Couplers Released 2 | . . . . . . . 2 . . . Machine Destruction 2 | . . . . . . . 2 . . . Fabnet Peak Effective % . | . . . . . . . . . . . Robots Rewired . | . . . . . . . . . . . Allies Hacked . | . . . . . . . . . . . Hacks Repelled . | . . . . . . . . . . . Allies | -11 -10 -9 -9 -9 -8 -8 -8 -7 -6 -5 -------- Run | Yrd Mat Mat Min Exi Min Mat Sto Fac Fac Fac Total Allies 15 | . . . . . . . 12 3 . . Largest Group 12 | . . . . . . . 12 3 . . Highest-Rated Group 235 | . . . . . . . 235 93 . . Highest-Rated Ally 31 | . . . . . . . 31 31 . . Total Orders 2 | . . . . . . . 2 . . . EXPLORE 2 | . . . . . . . 2 . . . Ally Attacks 28 | . . . . . . . 16 12 . . Total Damage 350 | . . . . . . . 264 86 . . Kills 4 | . . . . . . . 2 2 . . Allies Corrupted . | . . . . . . . . . . . Allies Melted . | . . . . . . . . . . . Intel | -11 -10 -9 -9 -9 -8 -8 -8 -7 -6 -5 ------- Run | Yrd Mat Mat Min Exi Min Mat Sto Fac Fac Fac Robot Analysis Total . | . . . . . . . . . . . Derelict Logs Recovered 1 | . . . 1 . . . . . . . Drone Launches 17 | . . . . . . . 17 . . . Drone Recoveries 3 | . . . . . . . 3 . . . Exploration | -11 -10 -9 -9 -9 -8 -8 -8 -7 -6 -5 ------------- Run | Yrd Mat Mat Min Exi Min Mat Sto Fac Fac Fac Turns Passed 6122 | 116 235 439 668 552 236 197 912 1763 151 853 Spaces Moved 5215 | 64 183 253 384 424 118 94 326 2480 254 635 Core 32 | 1 . . 7 . . . . . . 24 Treads 121 | . . . 14 . . . 107 . . . Legs . | . . . . . . . . . . . Wheels 1720 | 63 183 253 363 424 118 94 219 . . 3 Hover . | . . . . . . . . . . . Flight 3342 | . . . . . . . . 2480 254 608 Fastest Speed 21 | 50 100 93 90 115 145 145 145 21 25 21 Average Speed 74 | 99 100 99 119 128 145 145 188 42 25 54 Slowest Speed 455 | 100 100 115 250 145 145 145 305 101 90 455 Overloaded Moves 6 | . . . . . . . . 6 . . Propulsion Burnouts . | . . . . . . . . . . . Robots Hopped 1 | . . . . . . . . 1 . . Cave-ins Triggered . | . . . . . . . . . . . Exploration Rate (%) 30 | 4 30 24 55 62 31 11 54 39 7 13 Regions Visited 10 Branch Regions 4 Pre-discovered Areas 1 | . . . 1 . . . . . . . Known Exits Taken 7 | . . . 1 1 1 1 1 1 1 . Unknown Exits Taken 3 | 1 1 1 . . . . . . . . Scrap Searched 1 | . . . 1 . . . . . . . Spaces Dug 1 | . . . . . . . . 1 . . Terrain Destroyed 74 | . 19 28 4 . 2 . 5 9 . 7 Melee 1 | . . . . . . . . 1 . . Projectile 3 | . . . 1 . 2 . . . . . AOE 70 | . 19 28 3 . . . 5 8 . 7 Terrain Rammed . | . . . . . . . . . . . Walls Destroyed . | . . . . . . . . . . . Machines Disabled . | . . . . . . . . . . . Actions | -11 -10 -9 -9 -9 -8 -8 -8 -7 -6 -5 --------- Run | Yrd Mat Mat Min Exi Min Mat Sto Fac Fac Fac Total 7004 | 87 220 376 563 430 141 129 561 3116 327 1054 Wait 1203 | . 17 65 129 . 3 1 139 482 49 318 Move 5203 | 63 182 252 383 423 117 93 325 2477 253 635 Hop 1 | . . . . . . . . 1 . . Pick Up 76 | 3 3 10 7 3 . 9 11 22 4 4 Fast Attach 62 | 7 . 3 12 . . 2 1 18 3 16 Attach 29 | . . 2 . . . 3 5 8 1 10 Detach 2 | . . . . . . . . . 1 1 Swap 45 | . 2 3 3 2 . 3 13 13 3 3 Drop 75 | . . 6 7 2 . 3 8 34 6 9 Fire 207 | 14 11 35 22 . 21 15 45 15 . 29 Melee 68 | . . . . . . . 6 28 7 27 Ram 7 | . 5 . . . . . . . . 2 Kick . | . . . . . . . . . . . Crush . | . . . . . . . . . . . Escape Stasis 18 | . . . . . . . . 18 . . Rewire 1 | . . . . . . . 1 . . . Trap . | . . . . . . . . . . . Miscellaneous 7 | . . . . . . . 7 . . . Route ------- -11/Scrapyard -10/Materials -9/Materials -9/Mines (discovered 3 exits: *Mat / *Exi / *Zio) -9/Exiles -8/Mines -8/Materials -8/Storage -7/Factory (discovered 5 exits: *Fac x4 / *Low) -6/Factory -5/Factory History --------- Turn | Location | Event 7 | -11/Scrapyard | Discovered new exit (range 15) 117 | -11/Scrapyard | Entered Materials 316 | -10/Materials | Build established: Mutant 324 | -10/Materials | Discovered new exit (range 15) 352 | -10/Materials | Entered another Materials area 352 | -9/Materials | Evolved 2 slots: Propulsion x1, Utility x1 748 | -9/Materials | Discovered new exit (range 15) 791 | -9/Materials | Entered Mines 1024 | -9/Mines | Core integrity fell below 50% 1060 | -9/Mines | Lost 7 parts (1p2n2u2w) 1265 | -9/Mines | Learned location of Zion (-7) 1309 | -9/Mines | Build established: Scavenger-Mutant 1325 | -9/Mines | Discovered new exit (range 7) 1337 | -9/Mines | Identified exit to Materials 1422 | -9/Mines | A Derelict revealed a hidden shortcut to a safe place 1425 | -9/Mines | Identified exit to Zion 1451 | -9/Mines | Deemed a non-threat by the Exiles lab entrance 1452 | -9/Mines | Discovered new exit (range 5) 1457 | -9/Mines | Identified exit to Exiles 1459 | -9/Mines | Entered Exiles 1487 | -9/Exiles | Met 8R-AWN 1507 | -9/Exiles | Met EX-HEX 1540 | -9/Exiles | Met EX-BIN 1556 | -9/Exiles | Aligned with FarCom system 1557 | -9/Exiles | Given EX-Vault access code 1586 | -9/Exiles | Opened EX-Vault 1593 | -9/Exiles | Found PSU Rigger 1617 | -9/Exiles | Warned to stay clear of 0b10 Research branches 1651 | -9/Exiles | Met EX-DEC 1998 | -9/Exiles | Discovered new exit (range 10) 2008 | -9/Exiles | Identified exit to Mines 2011 | -9/Exiles | Left Exiles lab with PSU Rigger 2011 | -9/Exiles | Entered Mines 2159 | -8/Mines | Core integrity fell below 20% 2227 | -8/Mines | Discovered exit to Materials (range 15) 2247 | -8/Mines | Entered Materials 2247 | -8/Materials | Evolved 2 slots: Propulsion x1, Utility x1 2361 | -8/Materials | Discovered new exit (range 16) 2408 | -8/Materials | Identified exit to Storage 2444 | -8/Materials | Entered Storage 2548 | -8/Storage | Build established: Mutant 2961 | -8/Storage | Discovered new exit (range 43) 3050 | -8/Storage | Destroyed 7 combat bots 3050 | -8/Storage | Lost 10 allies 3191 | -8/Storage | Assisted by bots powering up and referring to "LRC-V3" 3210 | -8/Storage | Met a pair of Derelict thieves 3253 | -8/Storage | System corruption reached 10% 3263 | -8/Storage | Lost 12 allies 3288 | -8/Storage | Destroyed 7 combat bots 3353 | -8/Storage | Identified exit to Factory 3356 | -8/Storage | Entered Factory 3356 | -7/Factory | Evolved 2 slots: Propulsion x1, Utility x1 3512 | -7/Factory | Repaired Imp. VTOL Module 3728 | -7/Factory | Allied Derelicts emerged from ambush trap array 3809 | -7/Factory | Lost 3 parts (1p2u) 4108 | -7/Factory | Fabricated Adv. EMP Blaster? 4238 | -7/Factory | Build established: Hacker-Mutant 4847 | -7/Factory | Build established: Scavenger-Mutant 4939 | -7/Factory | Identified exit to Factory 4957 | -7/Factory | Discovered new exit (range 5) 4958 | -7/Factory | Identified exit to Lower Caves 5119 | -7/Factory | Entered another Factory area 5119 | -6/Factory | Evolved 2 slots: Power x1, Utility x1 5138 | -6/Factory | Lost 3 parts (1p1n1w) 5143 | -6/Factory | Garrison activated, responded to threat 5260 | -6/Factory | Discovered new exit (range 10) 5270 | -6/Factory | Identified exit to Factory 5270 | -6/Factory | Entered another Factory area 5270 | -5/Factory | Evolved 2 slots: Propulsion x1, Utility x1 5320 | -5/Factory | Repaired Power Maul 5365 | -5/Factory | Repaired Xenon Bombardment Thruster 5675 | -5/Factory | Fabricated Xenon Bombardment Thruster? 5683 | -5/Factory | Build established: Scavenger-Sprinter 6001 | -5/Factory | Lost 12 parts (2p6n1u3w) 6050 | -5/Factory | Core integrity fell below 50% 6086 | -5/Factory | Lost 8 parts (1p3n3u1w) 6101 | -5/Factory | Core integrity fell below 20% 6123 | -5/Factory | Destroyed by P-70 Sage with High-powered Shock Rifle Last Messages --------------- 06092_ Lgt. Nuclear Core destroyed. 06093_ S-27 Virus destroyed. 06095_ P-70 Sage resets R-10 Processor, system corruption cleaned. 06096_ R-10 Processor collects VTOL Module. 06097_ Microactuators destroyed. 06097_ Autogun destroyed. 06099_ Acquired 24 matter. 06100_ R-10 Processor collects VTOL Module. 06105_ Acquired VTOL Module. 06107_ Acquired 26 matter. 06110_ VTOL Module destroyed. 06111_ Dropped Med. Storage Unit. 06112_ Acquired 16 matter. 06119_ Acquired Wheel. 06120_ Acquired 10 matter. 06122_ Acquired Lgt. Ion Engine. 06122_ P-70 Sage resets K-01 Serf, system corruption cleaned. [Achievement: Just Browsing] Map ----- +----------------------------------------------------+ | ??????????????????# ????????????????????????????? | | ?????????????????? ????????????????????????????? | | ?????????????????? #????????????????????????????? | | ?????????????????? #????????????????????????????? | | ?????????????????? #????????????????????????????? | | ??????????????????# #????????????????????????????? | | ??????????????????# #????????????????????????????? | | ??????????????????# #????????????????????????????? | | ??????????????????# #????????????????????????????? | | ??????????????????# #????????????????????????????? | | ??????????????????# #????????????????????????????? | | ????????????????###+##########???????????????????? | | ????????????????# #???????????????????? | | ????????????????# """" """" #???????????????????? | | ????????????????# """" """" #???????????????????? | | ????????????????# """" """" #???????????????????? | | ????????????????# """" """" #???????????????????? | | ????????????????# #???????????????????? | | ????????????????# """" """ #???????????????????? | | ????????????????# """" """ #???????????????????? | | ????????????????# """" """ #???????????????????? | | ????????????????# """" R ##############??????? | | ????????????????# # #??????? | | ????????????????# # #??????? | | ????????????????#########/#### #??????? | | ?????????????????????# !@ # #??????? | | ?????????????????????# % # #??????? | | ?????????????????????# # #??????? | | ?????????????????????# + %= #??????? | | ?????????????????????# # #??????? | | ?????????????????????# # #??????? | | ?????????????????????# k # #??????? | | ?????????????????????### ### #??????? | | ???????????????????????# #?# #??????? | | ???????????????????????# #?##############??????? | | ???????????????????????# #?????????????????????? | | ???????##########??????# #?????????????????????? | | ???????# #??????# #?????????????????????? | | ???????# % ######## pp#########?????????????? | | ???????# # %% """" #?????????????? | | ???????# + F " #?????????????? | | ???????# # ! #?????????????? | | ???????# ### #########?????? | | ???????# #?# # #?????? | | ???????# ### # #?????? | | ???????# ### # #?????? | | ???????############ % # #?????? | | ????????????# % # ####### | | ????????????# / + | | ????????????# # ####### | +----------------------------------------------------+ Best States ------------- Heat Dissipation 54 Energy Generation 38 Energy Capacity 310 Matter Stores 300 Matter Capacity 300 Sight Range 16 Robot Scan Range 15 Terrain Scan Density 10 Additional Mass Support 6 Armor Coverage 375 Resistance: KI 25 Melee Speed Boost 20 Evasion (%) 65 Melee Accuracy 6 Recoil Reduction 2 Energy Filtering 30 Offensive Hacking 20 Item Schematics ----------------- Adv. EMP Blaster | -7/Factory | Scanalyzed Lyr. Light Armor Plating | -7/Factory | Scanalyzed Xenon Bombardment Thruster | -6/Factory | Scanalyzed Robot Schematics ------------------ None Fabricated ------------ Adv. EMP Blaster | x1 | -7/Factory Xenon Bombardment Thruster | x2 | -5/Factory Alien Tech Used ----------------- None Achievements -------------- Backstab Collateral Damage Just Browsing Release The Drones! Challenges ------------ None Game ------ Seed PhaseMeleeCanceller Manual? 0 Play Time 01:26:46 Cumulative 13.2 hours Start 2024.04.08 @ 01:33:38 End 2024.04.08 @ 20:07:18 Sessions 3 Manual Loads 0 Difficulty Rogue Special Mode None Game No. 17 Rogue 16 Adventurer 1 Explorer 0 Win Type - Total 0 Types 0/0/0/0/0/0/0/0/0 Lore% 8 Gallery% 25 Achievement% 22 Wizard Run 0 Options --------- Layout 1 ASCII 0 Keyboard 0 Movement Mouse Keybinds 0 Fullscreen 1 Font 18/SmallcapsGlow Map View 51x43 Zoom Use 0% Tactical HUD 1 Map Filters NONE Filters NONE Steam 1 RUN: 4b253be1-de92-449a-ae32-04fb6b6f1968